Cogmind - Beta 15 @@@ ROGUE MODE // 2025.05.24 @ 22:54:12 Player: Figgis Result: Self-destructed Performance ------------- Evolutions (1) 500 Regions Visited (5) 1000 Robots Destroyed (30) 150 Value Destroyed (725) 725 Prototype IDs (5) 100 Alien Tech Used (0) 0 Bonus (600) 600 TOTAL SCORE: 3075 Bonus ------- Met Imprinter 300 Was Imprinted 300 Cogmind --------- Core Integrity 91/400 Matter 300/300 Energy 250/250 System Corruption 4% Temperature Cool (0) Movement Treading (160) Location -7/Zion Parts ------- > --- POWER (1) -------- Ion Engine > --- PROPULSION (2) --- Light Treads Light Treads > --- UTILITY (4) ------ Large Storage Unit ECM Suite > --- WEAPON (2) ------- Makeshift Hammer Great Axe > --- INVENTORY (15) --- Ion Engine Aluminum Leg High-capacity Matter Pod (200) Light Armor Plating Light Armor Plating Heavy Beamcaster Slug Cannon Rocket Launcher Rocket Launcher Mini Grenade Launcher Mining Laser RU-N14's Throwing Claymores (4) RU-N14's Throwing Claymores (5) RU-N14's Throwing Claymores (4) Peak State ------------ > --- POWER ------------ Ion Engine > --- PROPULSION ------- Light Treads Light Treads > --- UTILITY ---------- Large Storage Unit Large Matter Pod ECM Suite > --- WEAPON ----------- RU-N14's Throwing Claymores Makeshift Hammer > --- INVENTORY -------- Ion Engine Aluminum Leg High-capacity Matter Pod Light Armor Plating Light Armor Plating Medium Laser Heavy Beamcaster Slug Cannon Rocket Launcher Rocket Launcher Mini Grenade Launcher Mining Laser RU-N14's Throwing Claymores RU-N14's Throwing Claymores Great Axe [Rating: 21] Favorites ----------- Power Ion Engine Engine Ion Engine Power Core Light Nuclear Core Propulsion Light Treads Treads Light Treads Leg Aluminum Leg Wheel Wheel Utility Large Matter Pod Device ECM Suite Storage Large Matter Pod Weapon Makeshift Hammer Energy Gun Medium Laser Ballistic Gun Assault Rifle Launcher Rocket Launcher Special Weapon RU-N14's Throwing Claymores Impact Weapon Makeshift Hammer Slashing Weapon Great Axe Build | -11 -10 -10 -9 -9 -7 ------- Run | Yrd Mat Min Mat Min Zio Slots Evolved 2 | . . . 2 . . Power . | . . . . . . Propulsion . | . . . . . . Utility 2 | . . . 2 . . Weapon . | . . . . . . Parts Attached 24 | 3 1 5 12 . 3 Power 4 | . . 1 3 . . Engine 3 | . . 1 2 . . Core 1 | . . . 1 . . Reactor . | . . . . . . Propulsion 7 | 2 . . 5 . . Treads 3 | . . . 3 . . Leg 2 | 2 . . . . . Wheel 2 | . . . 2 . . Hover . | . . . . . . Flight . | . . . . . . Utility 5 | . . 2 3 . . Device 2 | . . . 2 . . Storage 3 | . . 2 1 . . Processor . | . . . . . . Hackware . | . . . . . . Protection . | . . . . . . Artifact . | . . . . . . Weapon 8 | 1 1 2 1 . 3 Energy Gun 1 | 1 . . . . . Energy Cannon . | . . . . . . Ballistic Gun 1 | . 1 . . . . Ballistic Cannon . | . . . . . . Launcher 2 | . . 1 1 . . Special Weapon 2 | . . . . . 2 Impact Weapon 1 | . . 1 . . . Slashing Weapon 1 | . . . . . 1 Piercing Weapon . | . . . . . . Special Melee Weapon . | . . . . . . Unidentified Prototypes 1 | . . . . . 1 Parts Lost 6 | . . . 4 1 1 Power 1 | . . . 1 . . Propulsion 3 | . . . 3 . . Utility 2 | . . . . 1 1 Weapon . | . . . . . . Highest Loss Streak 2 | . . . 2 1 1 To Critical Strikes . | . . . . . . Average Backups 11 | 2 4 7 8 10 13 Power 1 | 1 2 2 1 1 1 Propulsion . | . . . . 1 1 Utility 2 | . 1 . 1 3 3 Weapon 6 | 1 1 3 4 5 8 Tool/Special . | . . . . . . Unused Backups 11 | . . 2 . . 9 Power 1 | . . . . . 1 Propulsion . | . . . . . . Utility 3 | . . . . . 3 Weapon 7 | . . 2 . . 5 Tool/Special . | . . . . . . Average Slot Usage (%) 89 | . 51 93 93 90 87 Engine 9 | . . 13 4 11 11 Core 1 | . . . 5 . . Treads 15 | . . . 2 22 22 Leg 6 | . 28 28 12 . . Wheel 1 | . . . 5 . . Device 11 | . . . 18 13 11 Storage 21 | . . 22 22 22 21 Energy Gun 3 | . 14 14 6 . . Ballistic Gun 1 | . 8 9 4 . . Launcher 1 | . . 1 . 11 . Special Weapon 5 | . . . . . 8 Impact Weapon 9 | . . 3 11 11 11 Peak Build Rating 21 | 3 4 11 16 14 21 Average Rating 15 | 1 3 7 13 13 19 On Entrance 7 | . 3 4 11 13 13 Naked Turns . | . . . . . . Heaviest Build 41 | 2 4 16 38 38 41 Greatest Support 40 | 3 20 20 40 40 40 Greatest Overweight (x) 3 | . . . 3 . 1 Average Overweight (x) . | . . . . . . Largest Inventory Capacity 15 | 5 5 8 15 15 15 Average Capacity 13 | 5 5 7 12 15 15 Most Carried 15 | 5 5 8 11 10 15 Average Carried 11 | 3 4 7 8 10 13 Final Capacity 15 | 5 5 8 15 15 15 Final Carried 14 | 5 5 8 10 10 14 Class Distribution -------------------- 100% | Mutant Dominant Class ---------------- Mutant | -10/Materials Mutant | -10/Mines Mutant | -9/Materials Mutant | -9/Mines Mutant | -7/Zion Resources | -11 -10 -10 -9 -9 -7 ----------- Run | Yrd Mat Min Mat Min Zio Matter Collected 596 | 228 12 71 215 42 28 Remotely . | . . . . . . Salvage Created 715 | . 41 118 474 82 . Parts 51 | . 5 11 29 6 . Haulers Intercepted . | . . . . . . Recyclers Shooed . | . . . . . . Parts Field Recycled . | . . . . . . Retrieved Matter . | . . . . . . Parts Self-Destructed . | . . . . . . Prevented . | . . . . . . Kills | -11 -10 -10 -9 -9 -7 ------- Run | Yrd Mat Min Mat Min Zio Combat Hostiles Destroyed 29 | . 3 7 13 6 . Melee 10 | . . 3 7 . . Guns 8 | . 3 4 1 . . AOE 6 | . . . 2 4 . Classes Destroyed 7 | . 1 2 3 1 . Worker 1 | . . . 1 . . Builder 1 | . . 1 . . . Swarmer 14 | . 3 6 1 4 . Grunt 8 | . . . 7 1 . Brawler 1 | . . . . 1 . Sentry 5 | . . . 5 . . Assembled 1 | . . 1 . . . Best Kill Streak 4 | . 3 3 3 4 . Combat Bots Only 4 | . 3 3 3 4 . Max Kills in Single Turn 2 | . 1 2 2 2 . Gunslinging 1 | . . 1 . . . Exploded 2 | . . . 2 2 . Melee 1 | . . 1 1 . . Uniques/NPCs Destroyed . | . . . . . . Combat | -11 -10 -10 -9 -9 -7 -------- Run | Yrd Mat Min Mat Min Zio Hostile Shots Fired 120 | . 8 28 71 13 . Missed 36 | . 3 7 24 2 . Hits 84 | . 5 21 47 11 . Melee 2 | . . . . 2 . Projectile 82 | . 5 21 47 9 . Critical Strikes 4 | . . . 1 3 . Damage Taken 1301 | . 38 190 664 158 251 Core 368 | . 16 43 193 25 91 Absorbed by Shields . | . . . . . . Regen/Repaired (Parts) 18 | . . . . . 18 Core Remaining (%) 88 | 100 . 76 . . . Volleys Fired 37 | . 4 6 25 2 . Largest 2 | . 2 2 1 1 . Hottest 70 | . 70 70 33 33 . Shots Fired 44 | . 8 9 25 2 . Gun 37 | . 8 9 20 . . Cannon . | . . . . . . Launcher 7 | . . . 5 2 . Special . | . . . . . . Kinetic 27 | . 4 3 20 . . Thermal 10 | . 4 6 . . . Explosive 7 | . . . 5 2 . Electromagnetic . | . . . . . . Robot Hit Streak 4 | . 3 4 4 2 . Robot Miss Streak 5 | . 1 1 5 . . Penetration Max . | . . . . . . Secondary Targets 1 | . . 1 . . . Max Gunslinging Chain 1 | . . 1 . . . Shots Hit Robots 59 | . 5 12 35 7 . Core Hits 26 | . 3 7 12 4 . Critical Kills 2 | . 1 . 1 . . Critical Parts Destroyed 7 | . . 2 3 2 . Critical Strikes 11 | . 2 3 4 2 . Burn 2 | . 1 1 . . . Destroy 1 | . 1 . . . . Smash 8 | . . 2 4 2 . Melee Attacks 225 | . . 13 35 8 169 Impact 194 | . . 13 35 8 138 Slashing 31 | . . . . . 31 Piercing . | . . . . . . Sneak Attacks 2 | . . 1 1 . . Combat Hostiles . | . . . . . . Follow-up Attacks . | . . . . . . Damage Inflicted 2474 | . 77 412 1529 456 . Guns 313 | . 77 94 142 . . Cannons . | . . . . . . Explosions 569 | . . . 320 249 . Melee 1592 | . . 318 1067 207 . Ramming . | . . . . . . Kinetic 195 | . 23 30 142 . . Thermal 118 | . 54 64 . . . Explosive 569 | . . . 320 249 . Electromagnetic . | . . . . . . Impact 1592 | . . 318 1067 207 . Slashing . | . . . . . . Piercing . | . . . . . . Highest Corruption 4 | . . . . 1 4 Average Corruption 1 | . . . . 1 1 Corruption Purged . | . . . . . . Corruption Blocked . | . . . . . . Effects 3 | . . . . 2 1 Message Errors 1 | . . . . . 1 Matter Fused 1 | . . . . 1 . Heat Flow Errors 1 | . . . . 1 . Overload Shots . | . . . . . . Overflow Damage 418 | . . 129 194 95 . Projectiles . | . . . . . . Explosions 13 | . . . . 13 . Melee 405 | . . 129 194 82 . Knockbacks 2 | . . . 2 . . Impact 2 | . . . 2 . . Kinetic . | . . . . . . Secondary . | . . . . . . Self-Inflicted Damage 59 | . . . 47 12 . Shots 3 | . . . 2 1 . Rammed . | . . . . . . Targets Rammed . | . . . . . . Kicked . | . . . . . . Crushed . | . . . . . . Highest Temperature 226 | . . 20 8 226 . Average Temperature 62 | . . 9 3 118 . Received Heat Transfer 285 | . . . 261 24 . Siege Activations . | . . . . . . Martial Activations . | . . . . . . Shielding Activations . | . . . . . . Robots Disrupted . | . . . . . . Combat Hostiles . | . . . . . . Robots Corrupted 6 | . . 1 3 2 . Combat Hostiles 5 | . . . 3 2 . Parts Fried 8 | . . 1 6 1 . Impact Corruptions 15 | . . 6 7 2 . Robots Melted . | . . . . . . Combat Hostiles . | . . . . . . Parts Melted 1 | . . 1 . . . Heat Transferred 481 | . 222 259 . . . Parts Sabotaged . | . . . . . . Parts Stolen . | . . . . . . Parts Stripped . | . . . . . . Power Chain Reactions . | . . . . . . Alert | -11 -10 -10 -9 -9 -7 ------- Run | Yrd Mat Min Mat Min Zio Maximum Alert Level . | . . . . . . Low Security (%) 100 | 100 100 100 100 100 . Level 1 . | . . . . . . Level 2 . | . . . . . . Level 3 . | . . . . . . Level 4 . | . . . . . . Level 5 . | . . . . . . High Security . | . . . . . . Max Security . | . . . . . . Peak Influence 172 | . 60 85 96 172 . Initial 32 | . . 15 12 32 . Average 40 | . 26 26 26 105 . Influence Increases 801 | . 70 145 406 180 . Destroy 0b10 Robot/C 560 | . 60 120 260 120 . Destroy 0b10 Robot/NC 10 | . . 5 5 . . Destroy Leader 120 | . 10 20 70 20 . Successful Hack 13 | . . . 13 . . Disable Machine 30 | . . . . 30 . Destroy Structure 53 | . . . 43 10 . Lose Combat Pursuer 15 | . . . 15 . . Influence Decreases 801 | . 30 152 355 242 22 Entered New Map 120 | . . 25 21 52 22 Time Decay 641 | . 30 127 304 180 . Lost Part 40 | . . . 30 10 . Squads Dispatched 2 | . 1 . 1 . . Investigation 1 | . 1 . . . . Extermination . | . . . . . . Reinforcement 1 | . . . 1 . . Assault . | . . . . . . Garrison . | . . . . . . Intercept . | . . . . . . Searches Triggered . | . . . . . . Construction Impeded . | . . . . . . Haulers Reinforced . | . . . . . . Active Scanning Responses . | . . . . . . Cargo Convoy Interrupts . | . . . . . . Stealth | -11 -10 -10 -9 -9 -7 --------- Run | Yrd Mat Min Mat Min Zio Distress Signals 1 | . . . 1 . . Communications Jammed . | . . . . . . Distress Signals . | . . . . . . Times Spotted 49 | . 4 7 32 6 . Peak Tracking Total 6 | . 2 3 6 4 . Tactical Retreats 6 | . . . 6 . . Traps | -11 -10 -10 -9 -9 -7 ------- Run | Yrd Mat Min Mat Min Zio Traps Triggered 1 | . 1 . . . . Indirectly . | . . . . . . Trap Hack Attempts . | . . . . . . Triggered . | . . . . . . Disarmed . | . . . . . . Reprogrammed . | . . . . . . Reused . | . . . . . . Traps Extracted . | . . . . . . Installed . | . . . . . . Triggered . | . . . . . . Machines | -11 -10 -10 -9 -9 -7 ---------- Run | Yrd Mat Min Mat Min Zio Machines Disabled 2 | . . . . 2 . Max in Single Turn 1 | . . . . 1 . Machines Repaired . | . . . . . . Machines Dismantled . | . . . . . . Machines Sabotaged . | . . . . . . Overloaded Fab Kills . | . . . . . . Hacking | -11 -10 -10 -9 -9 -7 --------- Run | Yrd Mat Min Mat Min Zio Machines Accessed 8 | . 4 . 4 . . Terminals 8 | . 4 . 4 . . Fabricators . | . . . . . . Repair Stations . | . . . . . . Recycling Units . | . . . . . . Scanalyzers . | . . . . . . Garrison Access . | . . . . . . Total Hacks 29 | . 11 . 18 . . Successful 9 | . 2 . 7 . . Failed 19 | . 8 . 11 . . Catastrophic 7 | . 4 . 3 . . Database Lockouts 1 | . 1 . . . . Manual 12 | . 9 . 2 . 1 Terminals 29 | . 11 . 18 . . Fabricators . | . . . . . . Repair Stations . | . . . . . . Recycling Units . | . . . . . . Scanalyzers . | . . . . . . Garrison Access . | . . . . . . Terminal Hacks 9 | . 2 . 7 . . Robot Analysis 1 | . 1 . . . . Prototype ID Bank 2 | . . . 2 . . Branch Access Points 2 | . 1 . 1 . . Terminal Index 1 | . . . 1 . . Locate Traps 1 | . . . 1 . . Reinforcement Status 1 | . . . 1 . . Registered Components 1 | . . . 1 . . Fabricator Hacks . | . . . . . . Repair Station Hacks . | . . . . . . Recycling Unit Hacks . | . . . . . . Scanalyzer . | . . . . . . Garrison Access Hacks . | . . . . . . Unauthorized Hacks . | . . . . . . Terminals . | . . . . . . Fabricators . | . . . . . . Repair Stations . | . . . . . . Recycling Units . | . . . . . . Scanalyzers . | . . . . . . Garrison Access . | . . . . . . Data Cores Recovered . | . . . . . . Used . | . . . . . . Hacking Detections 8 | . 4 . 4 . . Full Trace Events 1 | . 1 . . . . Feedback Events . | . . . . . . Feedback Blocked . | . . . . . . Robot Schematics Acquired 4 | . . . . . 4 Robots Built . | . . . . . . Authchips . | . . . . . . Time . | . . . . . . Total Robot Build Rating . | . . . . . . Part Schematics Acquired 15 | . . . . . 15 Parts Built . | . . . . . . Authchips . | . . . . . . Time . | . . . . . . Total Part Build Rating . | . . . . . . Parts Repaired . | . . . . . . Time . | . . . . . . Parts Recycled . | . . . . . . Recycled Matter . | . . . . . . Retrieved Matter . | . . . . . . Retrieved Components . | . . . . . . Parts Scanalyzed . | . . . . . . Part Schematics Acquired . | . . . . . . Parts Damaged . | . . . . . . Bothacking | -11 -10 -10 -9 -9 -7 ------------ Run | Yrd Mat Min Mat Min Zio Used RIF Installer . | . . . . . . Robots Hacked . | . . . . . . Non-combat . | . . . . . . Combat . | . . . . . . Robot Hacks Applied . | . . . . . . Relay Couplers Released . | . . . . . . Fabnet Peak Effective % . | . . . . . . Robots Rewired . | . . . . . . Allies Hacked . | . . . . . . Hacks Repelled . | . . . . . . Allies | -11 -10 -10 -9 -9 -7 -------- Run | Yrd Mat Min Mat Min Zio Total Allies 6 | . . . . . 6 Largest Group 6 | . . . . . 6 Highest-Rated Group 351 | . . . . . 351 Highest-Rated Ally 96 | . . . . . 96 Total Orders . | . . . . . . Ally Attacks . | . . . . . . Total Damage . | . . . . . . Kills . | . . . . . . Allies Corrupted . | . . . . . . Allies Melted . | . . . . . . Intel | -11 -10 -10 -9 -9 -7 ------- Run | Yrd Mat Min Mat Min Zio Active Infowar (turns) 3970 | . . . 918 368 2684 Sensors 987 | . . . 918 69 . ECM 3775 | . . . 723 368 2684 Robot Analysis Total 1 | . 1 . . . . Derelict Logs Recovered 3 | . . 2 . . 1 Drone Launches . | . . . . . . Drone Recoveries . | . . . . . . Exploration | -11 -10 -10 -9 -9 -7 ------------- Run | Yrd Mat Min Mat Min Zio Turns Passed 4639 | 29 93 474 991 368 2684 Spaces Moved 2194 | 39 109 324 475 217 1030 Core 112 | 39 73 . . . . Treads 1322 | . . . 75 217 1030 Legs 628 | . 36 324 268 . . Wheels 132 | . . . 132 . . Hover . | . . . . . . Flight . | . . . . . . Fastest Speed 50 | 50 50 120 95 160 160 Average Speed 178 | 50 73 120 152 160 228 Slowest Speed 330 | 50 120 120 330 160 240 Overloaded Moves . | . . . . . . Propulsion Burnouts . | . . . . . . Robots Hopped . | . . . . . . Potential Cave-ins 2 | . . . . . 2 Cave-ins Triggered 1 | . . . . . 1 Exploration Rate (%) 42 | 3 27 46 29 58 92 Regions Visited 5 Branch Regions 3 Pre-discovered Areas 4 | . . 1 . . 3 Known Exits Taken 2 | . 1 . 1 . . Unknown Exits Taken 3 | 1 . 1 . 1 . Scrap Searched 2 | . . . . . 2 Spaces Dug 23 | . . . 2 . 21 Terrain Destroyed 77 | . . . 42 14 21 Melee 23 | . . . 2 . 21 Projectile . | . . . . . . AOE 54 | . . . 40 14 . Terrain Rammed . | . . . . . . Walls Destroyed . | . . . . . . Machines Disabled . | . . . . . . Actions | -11 -10 -10 -9 -9 -7 --------- Run | Yrd Mat Min Mat Min Zio Total 2650 | 46 114 386 681 227 1196 Wait 157 | . . 31 121 . 5 Move 2189 | 38 108 323 474 216 1030 Hop . | . . . . . . Pick Up 27 | 5 1 6 8 . 7 Fast Attach 7 | 3 . 2 2 . . Attach 9 | . 1 1 5 . 2 Detach 1 | . . . . . 1 Swap 10 | . . 2 6 1 1 Drop 10 | . . 2 5 . 3 Fire 37 | . 4 6 25 2 . Melee 203 | . . 13 35 8 147 Ram . | . . . . . . Kick . | . . . . . . Crush . | . . . . . . Escape Stasis . | . . . . . . Rewire . | . . . . . . Trap . | . . . . . . Miscellaneous . | . . . . . . Route ------- -11/Scrapyard -10/Materials (discovered 2 exits: *Min x2) -10/Mines -9/Materials (discovered 2 exits: *Min x2) -9/Mines -7/Zion (discovered 1 exit: [*Pro]) History --------- Turn | Location | Event 17 | -11/Scrapyard | Discovered new exit (range 14) 30 | -11/Scrapyard | Entered Materials 48 | -10/Materials | Identified exit to Mines 61 | -10/Materials | Central database locked down 123 | -10/Materials | Entered Mines 124 | -10/Mines | Assembled infested the area 187 | -10/Mines | Learned Materials garrison access intel 245 | -10/Mines | Received a Rocket Launcher from a helpful Derelict 262 | -10/Mines | Discovered new exit (range 7) 309 | -10/Mines | Build established: Mutant 377 | -10/Mines | A weapon hastily lodged in a ceiling crevice suddenly fell to the ground 597 | -10/Mines | Entered Materials 597 | -9/Materials | Evolved 2 slots: Utility x2 730 | -9/Materials | Identified exit to Mines 1588 | -9/Materials | Entered Mines 1647 | -9/Mines | Core integrity fell below 50% 1944 | -9/Mines | A Derelict revealed a hidden shortcut to a safe place 1956 | -9/Mines | Entered Zion 2083 | -7/Zion | Found Prototype Special Weapon 2084 | -7/Zion | Identified RU-N14's Throwing Claymores 2087 | -7/Zion | Found RU-N14's Throwing Claymores 2090 | -7/Zion | Found RU-N14's Throwing Claymores 2145 | -7/Zion | Discovered new exit (range 9) 2155 | -7/Zion | Given A8's code to call for help 2339 | -7/Zion | System corruption cleaned by Quarantine Array 2404 | -7/Zion | Learned location of Warlord (-4) 2445 | -7/Zion | Learned Factory emergency access door positions 3096 | -7/Zion | Met Imprinter 3137 | -7/Zion | Imprinted 3139 | -7/Zion | Declared Zion's savior 3278 | -7/Zion | Learned location of Quarantine (-2) 3392 | -7/Zion | Enhanced Grunt warped into view, answering call for help 3400 | -7/Zion | Enhanced Grunt warped into view, answering call for help 3754 | -7/Zion | Learned 4 Factory zone layouts 4638 | -7/Zion | Crushed by falling debris 4640 | -7/Zion | Self-destructed Last Messages --------------- 04018_ 7Q-MAU(z) pokes at the Twisted Machinery. 04102_ PUBLIC SERVICE ANNOUNCEMENT: Quarantine Array scanned 1 system, cleaned 1. 04204_ PUBLIC SERVICE ANNOUNCEMENT: Quarantine Array scanned 1 system, cleaned 0. 04377_ Dropped Med. Laser. You have activated Keyboard Mode (toggled via F2 or the Options menu), which hides your mouse cursor and enables keyboard-controlled map look functionality. For hardcore keyboard-only players. 04570_ The unstable cave ceiling collapses. 04571_ PUBLIC SERVICE ANNOUNCEMENT: Quarantine Array scanned 1 system, cleaned 0. 04598_ The unstable cave ceiling collapses. 04607_ Enhanced Grunt crushed by falling debris. 04638_ The unstable cave ceiling collapses. 04638_ Crushed by falling debris. 04638_ Lrg. Matter Pod destroyed. 04638_ System corrupted by crushing effect (+4). 04639_ The unstable cave ceiling collapses. 04639_ 7V-SHW(M) crushed by falling debris. Map ----- +----------------------------------------------------+ | ????????????????????????????????????????????? | | ????????????????????????????????????????????? | | ????????????????????????????????????????????? | | ????????????????????????????????????????????? | | ????????????????????????????????????????????? | | ????????????????????????????????????????????? | | ????????????????????????????????????????????? | | ????????????????????????????????????????????? | | ????????????????????????????????????????????? | | ????????????????????????????????????????????? | | ????????????????????????????????????????????? | | ????????????????????????????????????????????? | | ????????????????????????????????????????????? | | ????????????????????????????????????????????? | | ????????????????????????????????????????????? | | ????????????????????????????????????????????? | | ????????????????????????????????????????????? | | ????????????????????????????????????????????? | | ????????????????????????????????????????????? | | ????????????????????????????????????????????? | | ????????????????????????????????????????????? | | ????????????????????????????????????????????? | | ????????????????????????????#######??##?????? | | ??????????????????????###???#"""#"###"##??### | | ?????????????##########"#??##" """"""""#?##"" | | ????????????## "#M@#""###?"" "" ""##"#""" | | ????????????# #########"""###" "#""""" | | ??????????### #???????" X""""" """" | | ?????????##"#"#???????# """"" ""##"" | | ?????????#"####??????## """"" """"#""" | | ?????????# #?????????"[ ""#???#""" | | ?????????# #?????????" "###??###"" | | ?????????#"#???####### """"""" """#???#""" | | ?????????# #???#"" """""""""" ""######## | | ?????????###???# ######"""####"" """"#??#" | | ?????????# ##### "#???#####??##"" """"#??#" | | ?????????##" "#??????????##"" ""###?#" | | ??????????#########???????####"#" """#?#" | | ??????????????????????????#"""""" ""###" | | ??????????????????????????#""" "###"" | | ??????????????????????????##""" """""""""" | | ?????????????????????????##"""" ""##"""" " | | ?????????????????????????#""" ""##""" | | ?????????????????????????#"#"" """#""" | | ??????????????????????????#""" """##"" | | ??????????????????????????#""" ""###"" | | ??????????????????????????##""" "#####" | | ???????????????????????????#""" """#?#" | | ???????????????????????????#"" "####" | | ???????????????????????????##" """#"" | +----------------------------------------------------+ Best States ------------- Heat Dissipation 28 Energy Generation 14 Energy Capacity 250 Matter Stores 450 Matter Capacity 450 Sight Range 16 Robot Scan Range 14 Terrain Scan Density 10 ECM Strength 1 Evasion (%) 55 Recoil Reduction 2 Item Schematics ----------------- Imp. Shield Generator | -7/Zion | Archive Lgt. Angular Momentum Engine | -7/Zion | Archive Lyr. Light Armor Plating | -7/Zion | Archive Phase Cannon | -7/Zion | Archive Arc Projector | -7/Zion | Archive Arm. Leg | -7/Zion | Archive Hrd. Heavy Armor Plating | -7/Zion | Archive Lrn. Proton Cannon | -7/Zion | Archive Adv. Plasma Cannon | -7/Zion | Archive Imp. Carbon-fiber Leg | -7/Zion | Archive Angular Momentum Engine | -7/Zion | Archive Adv. ECM Suite | -7/Zion | Archive Focal Shield | -7/Zion | Archive Adv. Sensor Array | -7/Zion | Archive Gauss Cannon | -7/Zion | Archive Robot Schematics ------------------ G-47 Trooper | -7/Zion | Archive O-24 Administrator | -7/Zion | Archive T-07 Excavator | -7/Zion | Archive C-57 Dissector | -7/Zion | Archive Fabricated ------------ Nothing Repaired ---------- Nothing Alien Tech Used ----------------- None Achievements -------------- None Challenges ------------ None Game ------ Seed ArmorThermalBiocell Manual? 0 Play Time 00:29:34 Cumulative 147.7 hours Start 2025.05.24 @ 22:21:34 End 2025.05.24 @ 22:54:12 Sessions 1 Manual Loads 0 Difficulty Rogue Special Mode None Game No. 212 Rogue 209 Adventurer 3 Explorer 0 Win Type - Total 1 Types 1/0/0/0/0/0/0/0/0/0 Lore% 34 Gallery% 54 Achievement% 44 Wizard Run 0 Options --------- Layout 0 ASCII 0 Keyboard 0 Movement Mouse Keybinds 0 Fullscreen 2 Font 18/SmallcapsGlow Map View 76x50 Zoom Use 0% Tactical HUD 1 Map Filters NONE Filters NONE Steam 1 RUN: 1b9c41d9-1198-47e1-b5d3-d9d940f3619f